[Event "*** Titled Tuesday Blitz"]
[Site "Chess.com"]
[Date "2021.02.02"]
[Round "9"]
[White "motivated_bishop"]
[Black "dozer80"]
[Result "1-0"]
[WhiteElo "2432"]
[BlackElo "2590"]
[TimeControl "180+1"]
[EndTime "11:45:17 PST"]
[Termination "motivated_bishop won by resignation"]

1. d4 {[%clk 0:03:00.9]} 1... Nf6 {[%clk 0:02:59.1]} 2. c4 {[%clk 0:03:00.8]}
2... c5 {[%clk 0:02:56.9]} 3. d5 {[%clk 0:03:00.7]} 3... b5 {[%clk 0:02:57.1]}
4. cxb5 {[%clk 0:03:00.7]} 4... a6 {[%clk 0:02:57.2]} 5. bxa6 {[%clk 0:03:01.1]}
5... e6 {[%clk 0:02:57.7]} 6. dxe6 {[%clk 0:02:58.2]} 6... fxe6 {[%clk
0:02:58.6]} 7. Nc3 {[%clk 0:02:57.9]} 7... d5 {[%clk 0:02:58.2]} 8. Nf3 {[%clk
0:02:54.1]} 8... Bd6 {[%clk 0:02:55.7]} 9. e3 {[%clk 0:02:51.2]} 9... O-O {[%clk
0:02:55]} 10. Be2 {[%clk 0:02:49.9]} 10... Nxa6 {[%clk 0:02:53.9]} 11. O-O
{[%clk 0:02:49.7]} 11... Bb7 {[%clk 0:02:54]} 12. Bd2 {[%clk 0:02:49]} 12... Kh8
{[%clk 0:02:50.3]} 13. h3 {[%clk 0:02:47.4]} 13... Qe7 {[%clk 0:02:49.4]} 14.
Nb5 {[%clk 0:02:47.2]} 14... Bb8 {[%clk 0:02:47.8]} 15. Qc2 {[%clk 0:02:41]}
15... e5 {[%clk 0:02:46.2]} 16. a3 {[%clk 0:02:32.7]} 16... e4 {[%clk
0:02:20.8]} 17. Nh2 {[%clk 0:02:32]} 17... Nc7 {[%clk 0:02:14.5]} 18. Nxc7
{[%clk 0:02:30.2]} 18... Qxc7 {[%clk 0:02:11]} 19. f4 {[%clk 0:02:27.5]} 19...
exf3 {[%clk 0:02:07.7]} 20. Nxf3 {[%clk 0:02:27.6]} 20... d4 {[%clk 0:02:08.2]}
21. exd4 {[%clk 0:02:24]} 21... Bxf3 {[%clk 0:02:08.1]} 22. Bxf3 {[%clk
0:02:22]} 22... Qh2+ {[%clk 0:02:08.1]} 23. Kf2 {[%clk 0:02:22.3]} 23... Re8
{[%clk 0:02:04.9]} 24. Bxa8 {[%clk 0:02:11.4]} 24... Qg3+ {[%clk 0:01:45.4]} 25.
Kg1 {[%clk 0:02:11.4]} 25... Qh2+ {[%clk 0:01:46]} 26. Kf2 {[%clk 0:02:11.7]}
26... cxd4 {[%clk 0:01:04.8]} 27. Rfe1 {[%clk 0:01:57.8]} 27... Bg3+ {[%clk
0:00:52.6]} 28. Kf3 {[%clk 0:01:56.7]} 28... Bxe1 {[%clk 0:00:52]} 29. Rxe1
{[%clk 0:01:54.5]} 29... Rf8 {[%clk 0:00:52.3]} 30. Bc6 {[%clk 0:01:09.3]} 30...
Nd7+ {[%clk 0:00:30.7]} 31. Ke2 {[%clk 0:01:04]} 31... Ne5 {[%clk 0:00:30.3]}
32. Kd1 {[%clk 0:01:00.9]} 32... Rc8 {[%clk 0:00:19.6]} 33. Qf5 {[%clk
0:00:57.1]} 1-0

[Event "*** Titled Tuesday Blitz"]
[Site "Chess.com"]
[Date "2021.02.02"]
[Round "9"]
[White "druskacik"]
[Black "Chimpinha"]
[Result "1-0"]
[WhiteElo "2583"]
[BlackElo "2395"]
[TimeControl "180+1"]
[EndTime "11:45:17 PST"]
[Termination "druskacik won by resignation"]

1. d4 {[%clk 0:02:57.3]} 1... Nf6 {[%clk 0:02:59.5]} 2. Bg5 {[%clk 0:02:56.7]}
2... g6 {[%clk 0:02:57.9]} 3. Bxf6 {[%clk 0:02:56.6]} 3... exf6 {[%clk
0:02:58.6]} 4. e3 {[%clk 0:02:57.2]} 4... Bg7 {[%clk 0:02:59.2]} 5. c4 {[%clk
0:02:57.4]} 5... O-O {[%clk 0:02:59.7]} 6. Nc3 {[%clk 0:02:58]} 6... d6 {[%clk
0:02:59.7]} 7. g3 {[%clk 0:02:58.2]} 7... c6 {[%clk 0:02:49.7]} 8. Bg2 {[%clk
0:02:57.1]} 8... f5 {[%clk 0:02:50.4]} 9. Nge2 {[%clk 0:02:54.5]} 9... Nd7
{[%clk 0:02:49.9]} 10. b4 {[%clk 0:02:52.7]} 10... Nf6 {[%clk 0:02:49.8]} 11.
O-O {[%clk 0:02:50]} 11... Re8 {[%clk 0:02:50.3]} 12. b5 {[%clk 0:02:48.1]}
12... Ne4 {[%clk 0:02:47.2]} 13. Qc2 {[%clk 0:02:41]} 13... Qe7 {[%clk
0:02:46.1]} 14. Rab1 {[%clk 0:02:33]} 14... h5 {[%clk 0:02:36.5]} 15. h4 {[%clk
0:02:31.1]} 15... Be6 {[%clk 0:02:22.7]} 16. Nxe4 {[%clk 0:02:21.5]} 16... fxe4
{[%clk 0:02:22]} 17. bxc6 {[%clk 0:02:15.1]} 17... bxc6 {[%clk 0:02:18.8]} 18.
Bxe4 {[%clk 0:02:11.8]} 18... Bxc4 {[%clk 0:01:52.7]} 19. Bxc6 {[%clk
0:02:10.3]} 19... Be6 {[%clk 0:01:27.6]} 20. Rb7 {[%clk 0:01:49]} 20... Qf6
{[%clk 0:01:20.7]} 21. Bxe8 {[%clk 0:01:48.3]} 21... Rxe8 {[%clk 0:01:20.3]} 22.
Qc6 {[%clk 0:01:45.2]} 22... Rd8 {[%clk 0:01:11.6]} 23. Nf4 {[%clk 0:01:42]}
23... Bg4 {[%clk 0:01:05.2]} 24. Rxa7 {[%clk 0:01:35.5]} 24... g5 {[%clk
0:01:02.1]} 25. hxg5 {[%clk 0:01:34.1]} 25... Qxg5 {[%clk 0:01:02.1]} 26. Ra8
{[%clk 0:01:27.2]} 26... h4 {[%clk 0:00:58]} 27. gxh4 {[%clk 0:01:19]} 27...
Qxh4 {[%clk 0:00:56.1]} 28. Rxd8+ {[%clk 0:01:17.9]} 28... Qxd8 {[%clk
0:00:56.7]} 29. Qg2 {[%clk 0:01:12.4]} 29... Qd7 {[%clk 0:00:46.9]} 30. Rb1
{[%clk 0:01:09.2]} 30... Qf5 {[%clk 0:00:34.6]} 31. Rb8+ {[%clk 0:01:06.5]}
31... Kh7 {[%clk 0:00:34.8]} 32. f3 {[%clk 0:01:02.2]} 32... Bh5 {[%clk
0:00:31.5]} 33. Nxh5 {[%clk 0:01:00.4]} 33... Qxh5 {[%clk 0:00:31.4]} 34. Qh1
{[%clk 0:00:59.7]} 34... Qxh1+ {[%clk 0:00:30.5]} 35. Kxh1 {[%clk 0:01:00.6]}
35... Bh6 {[%clk 0:00:31.4]} 36. f4 {[%clk 0:00:55.3]} 36... Kg6 {[%clk
0:00:30.7]} 37. Kg2 {[%clk 0:00:55.2]} 37... Kf5 {[%clk 0:00:31.3]} 38. Kf3
{[%clk 0:00:55.8]} 38... d5 {[%clk 0:00:32]} 39. Re8 {[%clk 0:00:54.6]} 1-0

[Event "*** Titled Tuesday Blitz"]
[Site "Chess.com"]
[Date "2021.02.02"]
[Round "9"]
[White "OlifantCZ"]
[Black "Politov_Pavel"]
[Result "0-1"]
[WhiteElo "2184"]
[BlackElo "2425"]
[TimeControl "180+1"]
[EndTime "11:45:22 PST"]
[Termination "Politov_Pavel won by resignation"]

1. c4 {[%clk 0:02:58.8]} 1... Nf6 {[%clk 0:02:59.4]} 2. g3 {[%clk 0:02:58.4]}
2... g6 {[%clk 0:02:59.6]} 3. Bg2 {[%clk 0:02:58.3]} 3... Bg7 {[%clk 0:03:00.5]}
4. Nc3 {[%clk 0:02:58.8]} 4... O-O {[%clk 0:03:01.1]} 5. e4 {[%clk 0:02:59.4]}
5... d6 {[%clk 0:03:01.7]} 6. Nge2 {[%clk 0:02:59.9]} 6... Nc6 {[%clk
0:03:02.3]} 7. O-O {[%clk 0:02:59.3]} 7... a6 {[%clk 0:03:02.9]} 8. h3 {[%clk
0:02:57.8]} 8... Rb8 {[%clk 0:03:03]} 9. a4 {[%clk 0:02:57.2]} 9... Na5 {[%clk
0:03:00.8]} 10. b3 {[%clk 0:02:55.1]} 10... c5 {[%clk 0:03:01.5]} 11. d3 {[%clk
0:02:53.4]} 11... Bd7 {[%clk 0:03:00.1]} 12. Bd2 {[%clk 0:02:36.2]} 12... Nc6
{[%clk 0:02:53.1]} 13. f4 {[%clk 0:02:31.1]} 13... Nb4 {[%clk 0:02:52.6]} 14.
Be3 {[%clk 0:02:20]} 14... Bc6 {[%clk 0:02:43]} 15. g4 {[%clk 0:02:17.6]} 15...
Nd7 {[%clk 0:02:38]} 16. f5 {[%clk 0:02:16]} 16... Ne5 {[%clk 0:02:37.8]} 17.
Nc1 {[%clk 0:02:08.2]} 17... Nexd3 {[%clk 0:02:34.2]} 18. Nxd3 {[%clk
0:02:05.7]} 18... Bxc3 {[%clk 0:02:34]} 19. Rc1 {[%clk 0:01:50.1]} 19... Bg7
{[%clk 0:02:33.1]} 20. Nxb4 {[%clk 0:01:49.7]} 20... cxb4 {[%clk 0:02:34]} 21.
g5 {[%clk 0:01:41.1]} 21... Be5 {[%clk 0:02:26.5]} 22. Qe1 {[%clk 0:01:34.4]}
22... f6 {[%clk 0:01:55.1]} 23. Qxb4 {[%clk 0:01:25]} 23... fxg5 {[%clk
0:01:45.2]} 24. Bxg5 {[%clk 0:01:22.1]} 24... gxf5 {[%clk 0:01:42.2]} 25. exf5
{[%clk 0:01:17.8]} 25... Bxg2 {[%clk 0:01:42]} 26. Kxg2 {[%clk 0:01:17.4]} 26...
Qd7 {[%clk 0:01:42.6]} 27. c5 {[%clk 0:01:04.1]} 27... Rxf5 {[%clk 0:01:28.4]}
28. h4 {[%clk 0:00:50.8]} 28... Rbf8 {[%clk 0:01:19.5]} 29. Qc4+ {[%clk
0:00:19.4]} 29... d5 {[%clk 0:01:15]} 30. Qd3 {[%clk 0:00:17.1]} 30... Rxg5+
{[%clk 0:01:00.5]} 31. hxg5 {[%clk 0:00:04.7]} 31... Qg4+ {[%clk 0:01:01]} 32.
Kh1 {[%clk 0:00:02.5]} 32... Qh4+ {[%clk 0:00:59.1]} 0-1

[Event "*** Titled Tuesday Blitz"]
[Site "Chess.com"]
[Date "2021.02.02"]
[Round "9"]
[White "Shahaliyev"]
[Black "strelec64"]
[Result "1-0"]
[WhiteElo "2724"]
[BlackElo "2502"]
[TimeControl "180+1"]
[EndTime "11:45:26 PST"]
[Termination "Shahaliyev won by resignation"]

1. e4 {[%clk 0:03:00.9]} 1... c5 {[%clk 0:02:58.8]} 2. Nf3 {[%clk 0:03:00.8]}
2... d6 {[%clk 0:02:58.9]} 3. c3 {[%clk 0:02:56.6]} 3... Nf6 {[%clk 0:02:57.6]}
4. Be2 {[%clk 0:02:56.9]} 4... g6 {[%clk 0:02:57.6]} 5. O-O {[%clk 0:02:56.6]}
5... Bg7 {[%clk 0:02:57.8]} 6. Re1 {[%clk 0:02:57]} 6... O-O {[%clk 0:02:57.8]}
7. Bf1 {[%clk 0:02:56.9]} 7... Nc6 {[%clk 0:02:56.8]} 8. h3 {[%clk 0:02:50.8]}
8... b6 {[%clk 0:02:54.7]} 9. d4 {[%clk 0:02:48.9]} 9... cxd4 {[%clk 0:02:49.8]}
10. cxd4 {[%clk 0:02:49.8]} 10... Bb7 {[%clk 0:02:48.1]} 11. d5 {[%clk
0:02:40.2]} 11... Nb8 {[%clk 0:02:39.2]} 12. Nc3 {[%clk 0:02:40.3]} 12... Nbd7
{[%clk 0:02:35.5]} 13. Nd4 {[%clk 0:02:33.2]} 13... Rc8 {[%clk 0:02:33.7]} 14.
Bb5 {[%clk 0:02:29.5]} 14... Ne5 {[%clk 0:02:08.6]} 15. Qe2 {[%clk 0:02:08.5]}
15... Nfd7 {[%clk 0:01:47.4]} 16. Be3 {[%clk 0:02:06.6]} 16... Nc5 {[%clk
0:01:41.4]} 17. f4 {[%clk 0:01:32]} 17... Ned7 {[%clk 0:01:39.7]} 18. Nc6 {[%clk
0:01:03]} 18... Bxc6 {[%clk 0:01:34.6]} 19. Bxc6 {[%clk 0:01:03.9]} 19... Bxc3
{[%clk 0:01:18]} 20. bxc3 {[%clk 0:01:04.8]} 20... Nxe4 {[%clk 0:01:18.1]} 21.
Bd4 {[%clk 0:01:05.1]} 21... f5 {[%clk 0:01:17.9]} 22. Qf3 {[%clk 0:00:50.7]}
22... Ndf6 {[%clk 0:00:47.5]} 23. g4 {[%clk 0:00:50.8]} 23... Kf7 {[%clk
0:00:38.9]} 24. g5 {[%clk 0:00:49.6]} 24... Nh5 {[%clk 0:00:35.2]} 25. Rxe4
{[%clk 0:00:49.6]} 25... fxe4 {[%clk 0:00:34.2]} 26. Qxe4 {[%clk 0:00:49]} 26...
Kg8 {[%clk 0:00:32.6]} 27. f5 {[%clk 0:00:37.7]} 27... Rxf5 {[%clk 0:00:18.7]}
28. Qe6+ {[%clk 0:00:38]} 28... Rf7 {[%clk 0:00:18.4]} 29. Rf1 {[%clk 0:00:35]}
1-0

[Event "*** Titled Tuesday Blitz"]
[Site "Chess.com"]
[Date "2021.02.02"]
[Round "9"]
[White "MaxLeto"]
[Black "cukin84"]
[Result "0-1"]
[WhiteElo "2293"]
[BlackElo "2151"]
[TimeControl "180+1"]
[EndTime "11:45:26 PST"]
[Termination "cukin84 won by resignation"]

1. e4 {[%clk 0:03:00.9]} 1... c6 {[%clk 0:02:58.9]} 2. d4 {[%clk 0:03:00.3]}
2... d5 {[%clk 0:02:57.8]} 3. Nc3 {[%clk 0:03:00.3]} 3... a6 {[%clk 0:02:56.7]}
4. Nf3 {[%clk 0:02:59.8]} 4... Bg4 {[%clk 0:02:55.2]} 5. h3 {[%clk 0:02:59.4]}
5... Bh5 {[%clk 0:02:54.7]} 6. g4 {[%clk 0:02:39]} 6... Bg6 {[%clk 0:02:53.7]}
7. exd5 {[%clk 0:02:39.4]} 7... cxd5 {[%clk 0:02:53]} 8. Ne5 {[%clk 0:02:39.9]}
8... Nc6 {[%clk 0:02:50.5]} 9. Nxg6 {[%clk 0:02:30]} 9... hxg6 {[%clk
0:02:49.9]} 10. Bg2 {[%clk 0:02:30.9]} 10... e6 {[%clk 0:02:46]} 11. Qd3 {[%clk
0:02:20]} 11... Nf6 {[%clk 0:02:42.5]} 12. Bg5 {[%clk 0:02:09.7]} 12... Qb6
{[%clk 0:02:40.5]} 13. O-O-O {[%clk 0:02:07.9]} 13... Be7 {[%clk 0:02:31.3]} 14.
Kb1 {[%clk 0:02:02.5]} 14... O-O-O {[%clk 0:02:25.5]} 15. Rhe1 {[%clk
0:01:58.4]} 15... Bb4 {[%clk 0:02:22.9]} 16. Re3 {[%clk 0:01:52.7]} 16... Kb8
{[%clk 0:02:20.4]} 17. Na4 {[%clk 0:01:12.7]} 17... Qa5 {[%clk 0:02:19.1]} 18.
Qb3 {[%clk 0:01:04]} 18... Ka8 {[%clk 0:02:11.3]} 19. Rf3 {[%clk 0:00:38.2]}
19... Be7 {[%clk 0:02:06.5]} 20. Rc3 {[%clk 0:00:26.2]} 20... Rb8 {[%clk
0:01:50.4]} 21. Bf4 {[%clk 0:00:25.2]} 21... Rbe8 {[%clk 0:01:33.1]} 22. f3
{[%clk 0:00:21.1]} 22... Ka7 {[%clk 0:01:30.9]} 23. Bf1 {[%clk 0:00:20.3]} 23...
Qb4 {[%clk 0:01:28.3]} 24. Nc5 {[%clk 0:00:14]} 24... Bxc5 {[%clk 0:01:24.9]}
25. Rxc5 {[%clk 0:00:10.8]} 25... Qxb3 {[%clk 0:01:20.2]} 26. axb3 {[%clk
0:00:11.7]} 26... Nd7 {[%clk 0:01:19.8]} 27. Rc3 {[%clk 0:00:10.5]} 27... Nb6
{[%clk 0:01:15.1]} 28. Re3 {[%clk 0:00:07.3]} 28... Rc8 {[%clk 0:01:12.8]} 29.
c3 {[%clk 0:00:07.4]} 29... Nd7 {[%clk 0:01:09]} 30. Rde1 {[%clk 0:00:07.5]}
30... Nd8 {[%clk 0:01:07.9]} 31. Bg3 {[%clk 0:00:07]} 31... Rc6 {[%clk
0:01:03.2]} 32. f4 {[%clk 0:00:05.5]} 32... Nf6 {[%clk 0:01:01.2]} 33. Bd3
{[%clk 0:00:05.6]} 33... Rxh3 {[%clk 0:00:59.6]} 34. f5 {[%clk 0:00:02.9]} 34...
Nxg4 {[%clk 0:00:57.6]} 35. Rf3 {[%clk 0:00:02.8]} 35... gxf5 {[%clk 0:00:56.9]}
0-1

[Event "*** Titled Tuesday Blitz"]
[Site "Chess.com"]
[Date "2021.02.02"]
[Round "9"]
[White "IMRosen"]
[Black "Kostukov_Alex"]
[Result "1-0"]
[WhiteElo "2547"]
[BlackElo "2301"]
[TimeControl "180+1"]
[EndTime "11:45:29 PST"]
[Termination "IMRosen won on time"]

1. e4 {[%clk 0:03:00.9]} 1... c5 {[%clk 0:02:59.6]} 2. Nc3 {[%clk 0:02:59.8]}
2... g6 {[%clk 0:02:59.9]} 3. d4 {[%clk 0:02:59.3]} 3... cxd4 {[%clk 0:02:59]}
4. Qxd4 {[%clk 0:03:00.2]} 4... Nf6 {[%clk 0:02:59.4]} 5. Bb5 {[%clk 0:03:00]}
5... a6 {[%clk 0:02:55.3]} 6. e5 {[%clk 0:02:59.4]} 6... axb5 {[%clk 0:02:54.3]}
7. exf6 {[%clk 0:02:59.9]} 7... Nc6 {[%clk 0:02:53]} 8. Qd3 {[%clk 0:02:59.8]}
8... b4 {[%clk 0:02:41.2]} 9. Nd5 {[%clk 0:02:54.1]} 9... e6 {[%clk 0:02:34.4]}
10. Bf4 {[%clk 0:02:34.1]} 10... d6 {[%clk 0:02:19.6]} 11. Qe3 {[%clk
0:01:57.1]} 11... Ra5 {[%clk 0:01:45.4]} 12. Rd1 {[%clk 0:01:49.6]} 12... Rc5
{[%clk 0:01:13.6]} 13. Qxc5 {[%clk 0:01:35.1]} 13... exd5 {[%clk 0:01:07.1]} 14.
Qe3+ {[%clk 0:01:24]} 14... Be6 {[%clk 0:01:06]} 15. Rxd5 {[%clk 0:00:51.5]}
15... Qxf6 {[%clk 0:00:58.2]} 16. Bxd6 {[%clk 0:00:51.6]} 16... Qxb2 {[%clk
0:00:44.3]} 17. Nf3 {[%clk 0:00:42.3]} 17... Qc3+ {[%clk 0:00:20.3]} 18. Qxc3
{[%clk 0:00:26.5]} 18... bxc3 {[%clk 0:00:21.2]} 19. Rd3 {[%clk 0:00:24.1]}
19... Bxa2 {[%clk 0:00:16.6]} 20. O-O {[%clk 0:00:22.9]} 20... Bxd6 {[%clk
0:00:03.3]} 21. Rxd6 {[%clk 0:00:22.7]} 21... O-O {[%clk 0:00:03.6]} 22. Rd3
{[%clk 0:00:20.4]} 1-0

[Event "*** Titled Tuesday Blitz"]
[Site "Chess.com"]
[Date "2021.02.02"]
[Round "9"]
[White "Alexander_Moskalenko"]
[Black "elohunter1999"]
[Result "0-1"]
[WhiteElo "2801"]
[BlackElo "2681"]
[TimeControl "180+1"]
[EndTime "11:45:31 PST"]
[Termination "elohunter1999 won by resignation"]

1. f4 {[%clk 0:03:00.9]} 1... c5 {[%clk 0:02:54.3]} 2. e4 {[%clk 0:02:58.8]}
2... Nc6 {[%clk 0:02:51.4]} 3. Nc3 {[%clk 0:02:57.3]} 3... g6 {[%clk 0:02:50.2]}
4. Nf3 {[%clk 0:02:57.5]} 4... Bg7 {[%clk 0:02:46.6]} 5. Bb5 {[%clk 0:02:57.8]}
5... Nd4 {[%clk 0:02:46.6]} 6. O-O {[%clk 0:02:57.6]} 6... Nxb5 {[%clk 0:02:43]}
7. Nxb5 {[%clk 0:02:58.5]} 7... d5 {[%clk 0:02:43]} 8. exd5 {[%clk 0:02:53.4]}
8... a6 {[%clk 0:02:42.8]} 9. Nc3 {[%clk 0:02:50.3]} 9... Nf6 {[%clk 0:02:42.5]}
10. d4 {[%clk 0:02:44.9]} 10... Nxd5 {[%clk 0:02:07.4]} 11. dxc5 {[%clk
0:02:44.2]} 11... Nxc3 {[%clk 0:02:06.8]} 12. Qxd8+ {[%clk 0:02:45.1]} 12...
Kxd8 {[%clk 0:02:07.5]} 13. bxc3 {[%clk 0:02:45.4]} 13... Bxc3 {[%clk
0:02:04.4]} 14. Rb1 {[%clk 0:02:36.9]} 14... Kc7 {[%clk 0:02:00.7]} 15. Rb3
{[%clk 0:02:36.7]} 15... Bf6 {[%clk 0:01:56.8]} 16. Ng5 {[%clk 0:02:28.3]} 16...
Bxg5 {[%clk 0:01:50.9]} 17. fxg5 {[%clk 0:02:29.2]} 17... Be6 {[%clk 0:01:51.3]}
18. Bf4+ {[%clk 0:02:29.3]} 18... Kc8 {[%clk 0:01:41.6]} 19. Re3 {[%clk
0:02:29.3]} 19... Rd8 {[%clk 0:01:38.9]} 20. c3 {[%clk 0:02:28.1]} 20... Rd5
{[%clk 0:01:37.5]} 21. Be5 {[%clk 0:02:19.1]} 21... Rxc5 {[%clk 0:01:31.2]} 22.
Bd4 {[%clk 0:02:19.1]} 22... Rd5 {[%clk 0:01:30.6]} 23. a4 {[%clk 0:02:07.8]}
23... Kd7 {[%clk 0:01:24.1]} 24. h4 {[%clk 0:02:07.8]} 24... Rc8 {[%clk
0:01:21.7]} 25. Rb1 {[%clk 0:02:07.7]} 25... b5 {[%clk 0:01:16.2]} 26. axb5
{[%clk 0:02:07.9]} 26... Rxb5 {[%clk 0:01:17.1]} 27. Ra1 {[%clk 0:02:07.7]}
27... a5 {[%clk 0:01:16.2]} 28. Rd3 {[%clk 0:01:59.8]} 28... Ke8 {[%clk
0:01:12.8]} 29. Re3 {[%clk 0:01:48.9]} 29... Ra8 {[%clk 0:01:11.4]} 30. Ra4
{[%clk 0:01:39.6]} 30... Bb3 {[%clk 0:01:10.8]} 31. Ra1 {[%clk 0:01:40.1]} 31...
a4 {[%clk 0:01:09.7]} 32. Bf6 {[%clk 0:01:37.8]} 32... Be6 {[%clk 0:01:08.3]}
33. Bd4 {[%clk 0:01:35]} 33... Rb3 {[%clk 0:01:04]} 34. Re2 {[%clk 0:01:24.8]}
34... a3 {[%clk 0:01:01.7]} 35. Rea2 {[%clk 0:01:24.6]} 35... Rb1+ {[%clk
0:01:01.5]} 36. Rxb1 {[%clk 0:01:21.9]} 36... Bxa2 {[%clk 0:01:02]} 37. Ra1
{[%clk 0:01:22.4]} 37... Bc4 {[%clk 0:01:02.2]} 38. Bc5 {[%clk 0:01:14.3]} 38...
a2 {[%clk 0:01:02.4]} 39. Bb4 {[%clk 0:01:14.5]} 39... Rd8 {[%clk 0:01:01.4]}
40. Re1 {[%clk 0:01:11]} 40... Rd2 {[%clk 0:00:55.2]} 41. Rxe7+ {[%clk
0:01:00.8]} 41... Kd8 {[%clk 0:00:54.9]} 42. Ra7 {[%clk 0:01:01.7]} 42... Rd1+
{[%clk 0:00:54.6]} 43. Kf2 {[%clk 0:01:01.6]} 43... a1=Q {[%clk 0:00:55]} 44.
Be7+ {[%clk 0:01:02.3]} 44... Ke8 {[%clk 0:00:52.7]} 45. Rxa1 {[%clk 0:01:03.2]}
45... Rxa1 {[%clk 0:00:53]} 46. Bf6 {[%clk 0:01:04.1]} 46... Ra2+ {[%clk
0:00:50]} 47. Ke3 {[%clk 0:01:04.6]} 47... Rxg2 {[%clk 0:00:49.6]} 48. Be5
{[%clk 0:01:05.5]} 48... Kd7 {[%clk 0:00:48.7]} 49. Kd4 {[%clk 0:01:06.2]} 49...
Rg4+ {[%clk 0:00:48.6]} 50. Kc5 {[%clk 0:01:06]} 50... Rxh4 {[%clk 0:00:48.6]}
51. Bf6 {[%clk 0:01:06.9]} 51... Rg4 {[%clk 0:00:47.9]} 52. Bg7 {[%clk
0:01:03.4]} 52... Bf1 {[%clk 0:00:45.1]} 53. Bf6 {[%clk 0:01:03.4]} 53... Ke6
{[%clk 0:00:45.3]} 54. Kb6 {[%clk 0:01:02.7]} 54... h5 {[%clk 0:00:45.2]} 55.
gxh6 {[%clk 0:01:02.2]} 55... Kxf6 {[%clk 0:00:45.1]} 56. h7 {[%clk 0:01:03.1]}
56... Rh4 {[%clk 0:00:45.3]} 57. c4 {[%clk 0:01:04]} 57... Bxc4 {[%clk
0:00:44.7]} 58. h8=Q+ {[%clk 0:01:04]} 58... Rxh8 {[%clk 0:00:44.4]} 0-1

[Event "*** Titled Tuesday Blitz"]
[Site "Chess.com"]
[Date "2021.02.02"]
[Round "9"]
[White "ZenBull"]
[Black "Lady_Nika"]
[Result "1-0"]
[WhiteElo "2264"]
[BlackElo "2366"]
[TimeControl "180+1"]
[EndTime "11:45:36 PST"]
[Termination "ZenBull won by resignation"]

1. Nf3 {[%clk 0:03:00.9]} 1... d5 {[%clk 0:02:58]} 2. d4 {[%clk 0:03:00.7]} 2...
e6 {[%clk 0:02:58.1]} 3. c4 {[%clk 0:03:00.3]} 3... f5 {[%clk 0:02:58.4]} 4. g3
{[%clk 0:02:57.2]} 4... c6 {[%clk 0:02:58.4]} 5. Bg2 {[%clk 0:02:57.6]} 5... Nf6
{[%clk 0:02:58.5]} 6. O-O {[%clk 0:02:57.5]} 6... Bd6 {[%clk 0:02:58.7]} 7. b3
{[%clk 0:02:58]} 7... O-O {[%clk 0:02:58.9]} 8. Ba3 {[%clk 0:02:58.2]} 8... Bxa3
{[%clk 0:02:54.6]} 9. Nxa3 {[%clk 0:02:59.1]} 9... Nbd7 {[%clk 0:02:54.6]} 10.
Nc2 {[%clk 0:02:59.1]} 10... Ne4 {[%clk 0:02:54.7]} 11. Nce1 {[%clk 0:02:58.7]}
11... Rf6 {[%clk 0:02:54.9]} 12. Nd3 {[%clk 0:02:58.7]} 12... Rh6 {[%clk
0:02:55.2]} 13. Nde5 {[%clk 0:02:57]} 13... Nxe5 {[%clk 0:02:53.3]} 14. Nxe5
{[%clk 0:02:55]} 14... Bd7 {[%clk 0:02:53.4]} 15. Qc2 {[%clk 0:02:50.5]} 15...
Be8 {[%clk 0:02:52.9]} 16. b4 {[%clk 0:02:46.6]} 16... Qb6 {[%clk 0:02:36]} 17.
c5 {[%clk 0:02:39.5]} 17... Qxb4 {[%clk 0:02:35.7]} 18. e3 {[%clk 0:02:11.7]}
18... Qa5 {[%clk 0:02:30.1]} 19. Rfb1 {[%clk 0:02:07.7]} 19... Rb8 {[%clk
0:02:28]} 20. Rb3 {[%clk 0:02:05.2]} 20... Qc7 {[%clk 0:02:17.6]} 21. Rab1
{[%clk 0:02:03.5]} 21... Nf6 {[%clk 0:02:11.6]} 22. Qb2 {[%clk 0:01:55.6]} 22...
b5 {[%clk 0:01:54.1]} 23. cxb6 {[%clk 0:01:54.7]} 23... axb6 {[%clk 0:01:50.7]}
24. Rxb6 {[%clk 0:01:54.5]} 24... Rxb6 {[%clk 0:01:47.2]} 25. Qxb6 {[%clk
0:01:55.4]} 25... Qxb6 {[%clk 0:01:46.3]} 26. Rxb6 {[%clk 0:01:55.4]} 26... Nd7
{[%clk 0:01:40.4]} 27. Nxd7 {[%clk 0:01:32.4]} 27... Bxd7 {[%clk 0:01:40.1]} 28.
Rb7 {[%clk 0:01:27.5]} 28... Be8 {[%clk 0:01:37.7]} 29. a4 {[%clk 0:01:24.3]}
29... Rf6 {[%clk 0:01:37.1]} 30. a5 {[%clk 0:01:24.5]} 30... Rf7 {[%clk
0:01:25.7]} 31. a6 {[%clk 0:01:16.5]} 31... c5 {[%clk 0:01:16.6]} 32. dxc5
{[%clk 0:00:56]} 32... Bc6 {[%clk 0:01:14.9]} 33. Rb8+ {[%clk 0:00:47.9]} 33...
Rf8 {[%clk 0:01:14.3]} 34. a7 {[%clk 0:00:44.6]} 34... Kf7 {[%clk 0:01:06.6]}
35. Bf1 {[%clk 0:00:43.5]} 35... Ke7 {[%clk 0:00:51]} 36. Bb5 {[%clk 0:00:36.7]}
36... Ba8 {[%clk 0:00:28.7]} 37. c6 {[%clk 0:00:27.3]} 1-0

[Event "*** Titled Tuesday Blitz"]
[Site "Chess.com"]
[Date "2021.02.02"]
[Round "9"]
[White "jorquerino"]
[Black "CoachHakia"]
[Result "0-1"]
[WhiteElo "2260"]
[BlackElo "2162"]
[TimeControl "180+1"]
[EndTime "11:45:37 PST"]
[Termination "CoachHakia won by checkmate"]

1. e4 {[%clk 0:03:00.9]} 1... d5 {[%clk 0:02:59.6]} 2. exd5 {[%clk 0:03:00.4]}
2... Qxd5 {[%clk 0:03:00.5]} 3. Nc3 {[%clk 0:03:00]} 3... Qa5 {[%clk 0:03:01.1]}
4. Bc4 {[%clk 0:02:59.5]} 4... Nf6 {[%clk 0:03:01.1]} 5. Nge2 {[%clk 0:02:58.6]}
5... Bf5 {[%clk 0:03:00.6]} 6. d3 {[%clk 0:02:57.3]} 6... e6 {[%clk 0:02:59.5]}
7. Bd2 {[%clk 0:02:56.6]} 7... c6 {[%clk 0:02:59.3]} 8. Ng3 {[%clk 0:02:53.6]}
8... Bg6 {[%clk 0:02:59]} 9. O-O {[%clk 0:02:49.5]} 9... Qc7 {[%clk 0:02:58.1]}
10. f4 {[%clk 0:02:47.9]} 10... Bc5+ {[%clk 0:02:53.8]} 11. Kh1 {[%clk
0:02:45.6]} 11... h5 {[%clk 0:02:49.9]} 12. Nge4 {[%clk 0:02:34.7]} 12... Bd4
{[%clk 0:02:30.3]} 13. Nxf6+ {[%clk 0:02:25]} 13... gxf6 {[%clk 0:02:25.7]} 14.
Qe2 {[%clk 0:02:18.6]} 14... Nd7 {[%clk 0:02:25.1]} 15. f5 {[%clk 0:02:17.5]}
15... Bxf5 {[%clk 0:01:44.4]} 16. Rxf5 {[%clk 0:02:14.9]} 16... O-O-O {[%clk
0:01:44.2]} 17. Rxh5 {[%clk 0:01:55.2]} 17... Ne5 {[%clk 0:01:28.3]} 18. Bb3
{[%clk 0:01:43.8]} 18... f5 {[%clk 0:01:23.6]} 19. Bf4 {[%clk 0:01:27.1]} 19...
Rxh5 {[%clk 0:01:08]} 20. Qxh5 {[%clk 0:01:24.1]} 20... Qe7 {[%clk 0:01:08.1]}
21. Bxe5 {[%clk 0:00:47.7]} 21... Bxe5 {[%clk 0:01:09]} 22. h3 {[%clk
0:00:42.4]} 22... Rh8 {[%clk 0:01:03.6]} 23. Qf3 {[%clk 0:00:41.7]} 23... Bc7
{[%clk 0:00:57.6]} 24. Kg1 {[%clk 0:00:24.9]} 24... Bb6+ {[%clk 0:00:53.9]} 25.
Kf1 {[%clk 0:00:22.4]} 25... Rh4 {[%clk 0:00:53.7]} 26. Re1 {[%clk 0:00:17.5]}
26... Qg5 {[%clk 0:00:47.8]} 27. Ke2 {[%clk 0:00:16]} 27... Rf4 {[%clk
0:00:45.5]} 28. h4 {[%clk 0:00:07.1]} 28... Qh6 {[%clk 0:00:35.4]} 29. Qh3
{[%clk 0:00:06.6]} 29... Rf2+ {[%clk 0:00:34.9]} 30. Kd1 {[%clk 0:00:05]} 30...
Qd2# {[%clk 0:00:35.4]} 0-1